Body Name,ONS SNAC ID,Pay Date,Transaction No,Amount �,Supplier Name,Company Registration No,Department,Account Name,CIPFA Service Reporting
Swale Borough Council,29UM,05/07/2017,1152097,6424.20,ACORN MAINTENANCE SERVICES,3546898                  ,HOUSING SERVICES,Housing Renovation Grants,Not used in this Structure
Swale Borough Council,29UM,05/07/2017,1152098,798.98,ACORN MAINTENANCE SERVICES,3546898                  ,HOUSING SERVICES,Housing Renovation Grants,Not used in this Structure
Swale Borough Council,29UM,05/07/2017,1152099,8809.20,ACORN MAINTENANCE SERVICES,3546898                  ,HOUSING SERVICES,Housing Renovation Grants,Not used in this Structure
Swale Borough Council,29UM,05/07/2017,1151750,28.43,ALLSTAR BUSINESS SOLUTIONS LTD - (DT),1073098                  ,DEMOCRATIC & ELECTORAL SERVICES,Petrol/Derv & Oil,Corporate & Democratic Core
Swale Borough Council,29UM,05/07/2017,1151750,27.22,ALLSTAR BUSINESS SOLUTIONS LTD - (DT),1073098                  ,SERVICE DELIVERY,Petrol/Derv & Oil,Cultural and Related Services
Swale Borough Council,29UM,05/07/2017,1151750,190.28,ALLSTAR BUSINESS SOLUTIONS LTD - (DT),1073098                  ,ENVIRONMENTAL RESPONSE TEAM,Fuel For Contract Vehicles,Internal Trading Cost Centres
Swale Borough Council,29UM,05/07/2017,1151750,49.49,ALLSTAR BUSINESS SOLUTIONS LTD - (DT),1073098                  ,ENVIRONMENTAL RESPONSE TEAM,Fuel For Contract Vehicles,Environmental and Regulatory Services
Swale Borough Council,29UM,05/07/2017,1151756,1.50,ALLSTAR BUSINESS SOLUTIONS LTD - (DT),1073098                  ,DEMOCRATIC & ELECTORAL SERVICES,Petrol/Derv & Oil,Corporate & Democratic Core
Swale Borough Council,29UM,05/07/2017,1151756,80.58,ALLSTAR BUSINESS SOLUTIONS LTD - (DT),1073098                  ,SERVICE DELIVERY,Petrol/Derv & Oil,Cultural and Related Services
Swale Borough Council,29UM,05/07/2017,1151756,237.38,ALLSTAR BUSINESS SOLUTIONS LTD - (DT),1073098                  ,ENVIRONMENTAL RESPONSE TEAM,Fuel For Contract Vehicles,Internal Trading Cost Centres
Swale Borough Council,29UM,05/07/2017,1151756,1.50,ALLSTAR BUSINESS SOLUTIONS LTD - (DT),1073098                  ,LEISURE & OPEN SPACES,Fuel For Contract Vehicles,Cultural and Related Services
Swale Borough Council,29UM,05/07/2017,1151756,1.50,ALLSTAR BUSINESS SOLUTIONS LTD - (DT),1073098                  ,ENVIRONMENTAL RESPONSE TEAM,Fuel For Contract Vehicles,Environmental and Regulatory Services
Swale Borough Council,29UM,05/07/2017,1151756,1.50,ALLSTAR BUSINESS SOLUTIONS LTD - (DT),1073098                  ,HOUSING SERVICES,Fuel For Contract Vehicles,Housing
Swale Borough Council,29UM,05/07/2017,1151918,1395.00,BBM SUSTAINABLE DESIGN LTD,4597504                  ,COMMUNITY SAFETY,Capitalised Fees And Charges,Not used in this Structure
Swale Borough Council,29UM,05/07/2017,1152042,1408.58,BLENWOOD LTD,4383277                  ,LEISURE & OPEN SPACES,Grounds Contract Variations,Cultural and Related Services
Swale Borough Council,29UM,05/07/2017,1152043,883.40,BLENWOOD LTD,4383277                  ,LEISURE & OPEN SPACES,Maintenance - Grounds,Cultural and Related Services
Swale Borough Council,29UM,05/07/2017,1152046,252.01,BLENWOOD LTD,4383277                  ,CAR PARKS,Maintenance - Grounds,Highway and Transport Services
Swale Borough Council,29UM,05/07/2017,1151864,226.76,BORDEN LANE VETERINARY SURGERY,05097345                 ,ENVIRONMENTAL RESPONSE TEAM,Fees - Treatment Of Dogs,Environmental and Regulatory Services
Swale Borough Council,29UM,05/07/2017,1151864,45.34,BORDEN LANE VETERINARY SURGERY,05097345                 ,ENVIRONMENTAL RESPONSE TEAM,Fees - Treatment Of Dogs,Environmental and Regulatory Services
Swale Borough Council,29UM,05/07/2017,1151615,348.00,BRC CONSULTING  SERVICES LTD,                         ,FINANCIAL SERVICES,Fees And Services,Internal Trading Cost Centres
Swale Borough Council,29UM,05/07/2017,1151782,1369.00,CARRINGTON WEST LIMITED,07344853                 ,PLANNING SERVICES,Agency/Contract Staff,Planning and Development Services
Swale Borough Council,29UM,05/07/2017,1151784,703.00,CARRINGTON WEST LIMITED,07344853                 ,PLANNING SERVICES,Agency/Contract Staff,Planning and Development Services
Swale Borough Council,29UM,05/07/2017,1151786,1332.00,CARRINGTON WEST LIMITED,07344853                 ,PLANNING SERVICES,Agency/Contract Staff,Planning and Development Services
Swale Borough Council,29UM,05/07/2017,1152051,999.00,CARRINGTON WEST LIMITED,07344853                 ,PLANNING SERVICES,Agency/Contract Staff,Planning and Development Services
Swale Borough Council,29UM,05/07/2017,1152081,1221.00,CARRINGTON WEST LIMITED,07344853                 ,PLANNING SERVICES,Agency/Contract Staff,Planning and Development Services
Swale Borough Council,29UM,05/07/2017,1151672,486.89,CBS MAINTENANCE SERVICES LTD,                         ,CONTRACT & PROCUREMENT,Non-Planned Building Maintenance,Environmental and Regulatory Services
Swale Borough Council,29UM,05/07/2017,1151988,422.00,COLYER REPROPOINT LIMITED,10213369                 ,MKS ICT,Computer Equipment & Materials,Internal Trading Cost Centres
Swale Borough Council,29UM,05/07/2017,1151907,2777.32,COMENSURA LTD,04085767                 ,HUMAN RESOURCES,Agency/Contract Staff,Internal Trading Cost Centres
Swale Borough Council,29UM,05/07/2017,1151885,607.00,COMPLETE IT SYSTEMS LTD,06224858                 ,MKS ICT,Payments in Year,Ledger/Suspense Codes
Swale Borough Council,29UM,05/07/2017,1151626,359.00,CONTRACT SECURITY SERVICES,2461362                  ,EXCHEQUER,Cash Security,Internal Trading Cost Centres
Swale Borough Council,29UM,05/07/2017,1151626,4318.08,CONTRACT SECURITY SERVICES,2461362                  ,CAR PARKS,Cash Security,Highway and Transport Services
Swale Borough Council,29UM,05/07/2017,1151738,386.66,DATA PROTECTION PEOPLE LTD,09706626                 ,DIRECTOR OF CORPORATE SERVICES,Fees And Services,Corporate & Democratic Core
Swale Borough Council,29UM,05/07/2017,1151871,3500.00,DAVID HUSKISSON ASSOCIATES LIMITED,2797095                  ,PLANNING SERVICES,Fees And Services,Planning and Development Services
Swale Borough Council,29UM,05/07/2017,1152100,10277.12,DAYTRAD LIMITED,7654373                  ,HOUSING SERVICES,Housing Renovation Grants,Not used in this Structure
Swale Borough Council,29UM,05/07/2017,1151911,1575.00,DOCUMENT OUTPUT SOLUTIONS UK LTD,3686010                  ,REVENUE SERVICES,Consultancy/Specialist Advice,Housing
Swale Borough Council,29UM,05/07/2017,1151200,91.34,EDF ENERGY CUSTOMERS PLC,                         ,HOUSING SERVICES,Electricity,Housing
Swale Borough Council,29UM,05/07/2017,1151200,-88.00,EDF ENERGY CUSTOMERS PLC,                         ,HOUSING SERVICES,Gas,Housing
Swale Borough Council,29UM,05/07/2017,1151200,274.81,EDF ENERGY CUSTOMERS PLC,                         ,HOUSING SERVICES,Gas,Housing
Swale Borough Council,29UM,05/07/2017,1151200,-3.03,EDF ENERGY CUSTOMERS PLC,                         ,HOUSING SERVICES,Electricity,Housing
Swale Borough Council,29UM,05/07/2017,1151685,2755.71,FIRST UTILITY LTD,05070887                 ,HOUSING SERVICES,Electricity,Housing
Swale Borough Council,29UM,05/07/2017,1151685,34.23,FIRST UTILITY LTD,05070887                 ,HOUSING SERVICES,Gas,Housing
Swale Borough Council,29UM,05/07/2017,1151685,-3686.14,FIRST UTILITY LTD,05070887                 ,HOUSING SERVICES,Electricity,Housing
Swale Borough Council,29UM,05/07/2017,1151688,3958.69,FIRST UTILITY LTD,05070887                 ,HOUSING SERVICES,Electricity,Housing
Swale Borough Council,29UM,05/07/2017,1151688,13.88,FIRST UTILITY LTD,05070887                 ,HOUSING SERVICES,Gas,Housing
Swale Borough Council,29UM,05/07/2017,1151688,-2989.75,FIRST UTILITY LTD,05070887                 ,HOUSING SERVICES,Electricity,Housing
Swale Borough Council,29UM,05/07/2017,1151749,2305.87,GLASDON U.K.LIMITED,2160576                  ,LEISURE & OPEN SPACES,Construction,Not used in this Structure
Swale Borough Council,29UM,05/07/2017,1151643,15185.00,GRANT THORNTON UK LLP,                         ,DIRECTOR OF CORPORATE SERVICES,External Audit Fee,Corporate & Democratic Core
Swale Borough Council,29UM,05/07/2017,1151762,23626.00,GRANT THORNTON UK LLP,                         ,REVENUE SERVICES,External Audit Fee,Housing
Swale Borough Council,29UM,05/07/2017,1151917,10682.80,GRANWOOD FLOORING LIMITED,00566174                 ,COMMUNITY SAFETY,Capital Constuction - CIS Works,Not used in this Structure
Swale Borough Council,29UM,05/07/2017,1152101,3230.00,J & D SYSTEMS,                         ,HOUSING SERVICES,Housing Renovation Grants,Not used in this Structure
Swale Borough Council,29UM,05/07/2017,1152009,1500.00,JASMIL KENNELS,05595524                 ,ENVIRONMENTAL RESPONSE TEAM,Kennelling Of Dogs,Environmental and Regulatory Services
Swale Borough Council,29UM,05/07/2017,1152009,-185.00,JASMIL KENNELS,05595524                 ,ENVIRONMENTAL RESPONSE TEAM,Income collected by Dog Kennels,Environmental and Regulatory Services
Swale Borough Council,29UM,05/07/2017,1151683,340.00,KENT INVICTA CHAMBER OF COMMERCE,2794615                  ,ECONOMIC DEVELOPMENT,Fees And Services,Planning and Development Services
Swale Borough Council,29UM,05/07/2017,1151992,1350.00,KENT MESSENGER LTD,505554                   ,COMMUNICATIONS,Advertising & Promotion,Internal Trading Cost Centres
Swale Borough Council,29UM,05/07/2017,1151389,5232.80,KINGDOM SECURITY LIMITED,2795197                  ,ENVIRONMENTAL RESPONSE TEAM,Fees And Services,Planning and Development Services
Swale Borough Council,29UM,05/07/2017,1151804,1500.00,LEMAR LIMITED,04350292                 ,LEISURE & OPEN SPACES,Capital Constuction - CIS Works,Not used in this Structure
Swale Borough Council,29UM,05/07/2017,1151804,895.50,LEMAR LIMITED,04350292                 ,LEISURE & OPEN SPACES,Capital Constuction - CIS Works,Not used in this Structure
Swale Borough Council,29UM,05/07/2017,1151242,6025.00,LESSHOMELESS LIMITED,08458851                 ,HOUSING SERVICES,B & B - Landlords Payments,Housing
Swale Borough Council,29UM,05/07/2017,1151996,280.00,LILAC ESTATES,                         ,HOUSING SERVICES,B & B - Landlords Payments,Housing
Swale Borough Council,29UM,05/07/2017,1151997,280.00,LILAC ESTATES,                         ,HOUSING SERVICES,B & B - Landlords Payments,Housing
Swale Borough Council,29UM,05/07/2017,1151998,280.00,LILAC ESTATES,                         ,HOUSING SERVICES,B & B - Landlords Payments,Housing
Swale Borough Council,29UM,05/07/2017,1151999,280.00,LILAC ESTATES,                         ,HOUSING SERVICES,B & B - Landlords Payments,Housing
Swale Borough Council,29UM,05/07/2017,1152000,280.00,LILAC ESTATES,                         ,HOUSING SERVICES,B & B - Landlords Payments,Housing
Swale Borough Council,29UM,05/07/2017,1151625,1451.05,LLOYDS BANK - (DT),                         ,FINANCIAL SERVICES,Bank Charges,Corporate & Democratic Core
Swale Borough Council,29UM,05/07/2017,1151807,1260.00,LUSHLAND,4289261                  ,PLANNING SERVICES,Fees And Services,Planning and Development Services
Swale Borough Council,29UM,05/07/2017,1151940,1770.00,MAGEES GUESTHOUSE,                         ,HOUSING SERVICES,B & B - Landlords Payments,Housing
Swale Borough Council,29UM,05/07/2017,1151870,1400.00,MAIDSTONE BOROUGH COUNCIL,                         ,REVENUE SERVICES,Computer Equipment & Materials,Central Services to the Public
Swale Borough Council,29UM,05/07/2017,1151870,1400.00,MAIDSTONE BOROUGH COUNCIL,                         ,REVENUE SERVICES,Computer Equipment & Materials,Housing
Swale Borough Council,29UM,05/07/2017,1151987,6950.00,MATTS MONITORS LTD,8501849                  ,MKS ENVIRONMENTAL SERVICES,Equipment Maintenance,Environmental and Regulatory Services
Swale Borough Council,29UM,05/07/2017,1151610,3000.00,MEDWAY COUNCIL,                         ,PLANNING SERVICES,Consultancy/Specialist Advice,Planning and Development Services
Swale Borough Council,29UM,05/07/2017,1152065,1270.00,MEDWAY PUBLIC SERVICES LTD,10041989                 ,COMMUNITY SAFETY,CCTV Monitoring Service,Environmental and Regulatory Services
Swale Borough Council,29UM,05/07/2017,1152015,440.00,MILTON COURT PRIMARY ACADEMY,                         ,DEMOCRATIC & ELECTORAL SERVICES,Hire Of Premises,Central Services to the Public
Swale Borough Council,29UM,05/07/2017,1151684,750.00,REDACTED PERSONAL INFORMATION,                         ,ENVIRONMENTAL RESPONSE TEAM,Legal Fees,Internal Trading Cost Centres
Swale Borough Council,29UM,05/07/2017,1151451,396.82,NORTHSHORE DESIGNS LIMITED,                         ,ENVIRONMENTAL RESPONSE TEAM,Protective Clothing,Internal Trading Cost Centres
Swale Borough Council,29UM,05/07/2017,1152135,780.00,REDACTED PERSONAL INFORMATION,                         ,REVENUE SERVICES,Fees And Services,Housing
Swale Borough Council,29UM,05/07/2017,1152139,780.00,REDACTED PERSONAL INFORMATION,                         ,REVENUE SERVICES,Fees And Services,Housing
Swale Borough Council,29UM,05/07/2017,4500573,-780.00,REDACTED PERSONAL INFORMATION,                         ,REVENUE SERVICES,Fees And Services,Housing
Swale Borough Council,29UM,05/07/2017,1152018,290.33,PORTAKABIN LIMITED,685303                   ,LEISURE & OPEN SPACES,Maintenance - Grounds,Environmental and Regulatory Services
Swale Borough Council,29UM,05/07/2017,1152012,302.12,PREMIER PAPER GROUP LTD,                         ,PROPERTY SERVICES,Paper,Internal Trading Cost Centres
Swale Borough Council,29UM,05/07/2017,1151797,735.00,REARDON PROPERTIES,                         ,HOUSING SERVICES,B & B - Landlords Payments,Housing
Swale Borough Council,29UM,05/07/2017,1151798,490.00,REARDON PROPERTIES,                         ,HOUSING SERVICES,B & B - Landlords Payments,Housing
Swale Borough Council,29UM,05/07/2017,1151799,605.00,REARDON PROPERTIES,                         ,HOUSING SERVICES,B & B - Landlords Payments,Housing
Swale Borough Council,29UM,05/07/2017,1152069,1384.00,RICARDO - AEA,8229264                  ,MKS ENVIRONMENTAL SERVICES,Kcc Air Pollution Monitoring,Environmental and Regulatory Services
Swale Borough Council,29UM,05/07/2017,1152017,1158.68,ROYAL MAIL GROUP LTD,4138203                  ,DEMOCRATIC & ELECTORAL SERVICES,Postage,Ledger/Suspense Codes
Swale Borough Council,29UM,05/07/2017,1152010,375.00,RURAL PLANNING LTD,4426249                  ,PLANNING SERVICES,Fees And Services,Planning and Development Services
Swale Borough Council,29UM,05/07/2017,1152102,1000.00,REDACTED PERSONAL INFORMATION,                         ,HOUSING SERVICES,Housing Renovation Grants,Not used in this Structure
Swale Borough Council,29UM,05/07/2017,1151657,334.20,SCOTTISH WATER BUSINESS STREAM LTD,SC294924                 ,CAR PARKS,Water - Rateable Value,Highway and Transport Services
Swale Borough Council,29UM,05/07/2017,1151660,435.77,SCOTTISH WATER BUSINESS STREAM LTD,SC294924                 ,CAR PARKS,Water - Rateable Value,Highway and Transport Services
Swale Borough Council,29UM,05/07/2017,1151661,368.06,SCOTTISH WATER BUSINESS STREAM LTD,SC294924                 ,CAR PARKS,Water - Rateable Value,Highway and Transport Services
Swale Borough Council,29UM,05/07/2017,1151866,1715.00,TRAFALGAR TAVERN LTD,07999329                 ,HOUSING SERVICES,B & B - Landlords Payments,Housing
Swale Borough Council,29UM,05/07/2017,1152027,925.00,TRAINING SYNERGY,                         ,REVENUE SERVICES,Fees And Services,Housing
Swale Borough Council,29UM,05/07/2017,1151753,600.00,VENN GROUP LIMITED,                         ,MKS LEGAL SERVICES,Agency/Contract Staff,Internal Trading Cost Centres
Swale Borough Council,29UM,05/07/2017,1151754,967.50,VENN GROUP LIMITED,                         ,MKS LEGAL SERVICES,Agency/Contract Staff,Internal Trading Cost Centres
Swale Borough Council,29UM,05/07/2017,1151989,480.00,VENN GROUP LIMITED,                         ,MKS LEGAL SERVICES,Agency/Contract Staff,Internal Trading Cost Centres
Swale Borough Council,29UM,05/07/2017,1151990,967.50,VENN GROUP LIMITED,                         ,MKS LEGAL SERVICES,Agency/Contract Staff,Internal Trading Cost Centres
Swale Borough Council,29UM,05/07/2017,1151585,2467.50,VIVID RESOURCING LIMITED,06459262                 ,PLANNING SERVICES,Agency/Contract Staff,Internal Trading Cost Centres
Swale Borough Council,29UM,05/07/2017,1152001,1347.50,VIVID RESOURCING LIMITED,06459262                 ,PLANNING SERVICES,Agency/Contract Staff,Internal Trading Cost Centres
Swale Borough Council,29UM,05/07/2017,1152002,1373.75,VIVID RESOURCING LIMITED,06459262                 ,PLANNING SERVICES,Agency/Contract Staff,Internal Trading Cost Centres
Swale Borough Council,29UM,05/07/2017,1151703,767.32,WHISTL UK LIMITED,04417047                 ,REVENUE SERVICES,Postage,Central Services to the Public
Swale Borough Council,29UM,05/07/2017,1151703,2.32,WHISTL UK LIMITED,04417047                 ,PLANNING SERVICES,Postage,Planning and Development Services
Swale Borough Council,29UM,05/07/2017,1151703,383.66,WHISTL UK LIMITED,04417047                 ,REVENUE SERVICES,Postage,Housing
Swale Borough Council,29UM,05/07/2017,1151703,7.24,WHISTL UK LIMITED,04417047                 ,LEISURE & OPEN SPACES,Postage,Internal Trading Cost Centres
Swale Borough Council,29UM,05/07/2017,1151703,21.90,WHISTL UK LIMITED,04417047                 ,CAR PARKS,Postage,Internal Trading Cost Centres
Swale Borough Council,29UM,05/07/2017,1151703,157.44,WHISTL UK LIMITED,04417047                 ,PROPERTY SERVICES,Postage,Holding Codes
Swale Borough Council,29UM,05/07/2017,1151703,52.51,WHISTL UK LIMITED,04417047                 ,DEMOCRATIC & ELECTORAL SERVICES,Postage,Central Services to the Public
Swale Borough Council,29UM,05/07/2017,1151887,575.31,WHISTL UK LIMITED,04417047                 ,REVENUE SERVICES,Postage,Central Services to the Public
Swale Borough Council,29UM,05/07/2017,1151887,0.84,WHISTL UK LIMITED,04417047                 ,PLANNING SERVICES,Postage,Planning and Development Services
Swale Borough Council,29UM,05/07/2017,1151887,287.65,WHISTL UK LIMITED,04417047                 ,REVENUE SERVICES,Postage,Housing
Swale Borough Council,29UM,05/07/2017,1151887,2.17,WHISTL UK LIMITED,04417047                 ,LEISURE & OPEN SPACES,Postage,Internal Trading Cost Centres
Swale Borough Council,29UM,05/07/2017,1151887,23.73,WHISTL UK LIMITED,04417047                 ,CAR PARKS,Postage,Internal Trading Cost Centres
Swale Borough Council,29UM,05/07/2017,1151887,941.94,WHISTL UK LIMITED,04417047                 ,PROPERTY SERVICES,Postage,Holding Codes
Swale Borough Council,29UM,05/07/2017,1151887,118.69,WHISTL UK LIMITED,04417047                 ,DEMOCRATIC & ELECTORAL SERVICES,Postage,Central Services to the Public
Swale Borough Council,29UM,05/07/2017,1151861,405.00,WILLOW TREE HOME SOLUTIONS LTD,                         ,HOUSING SERVICES,Staying Put small repairs (contractors),Housing
Swale Borough Council,29UM,05/07/2017,1151862,350.00,WILLOW TREE HOME SOLUTIONS LTD,                         ,HOUSING SERVICES,Staying Put small repairs (contractors),Housing
Swale Borough Council,29UM,05/07/2017,1151863,374.00,WILLOW TREE HOME SOLUTIONS LTD,                         ,HOUSING SERVICES,Staying Put small repairs (contractors),Housing
Swale Borough Council,29UM,05/07/2017,1151868,720.00,ZEBRA TRAINING SERVICES LTD,7522160                  ,REVENUE SERVICES,Fees And Services,Housing
Swale Borough Council,29UM,12/07/2017,1150859,800.00,A.C MACKLIN FENCING,10311550                 ,LEISURE & OPEN SPACES,Maintenance - Grounds,Cultural and Related Services
Swale Borough Council,29UM,12/07/2017,1150859,136.00,A.C MACKLIN FENCING,10311550                 ,LEISURE & OPEN SPACES,Maintenance - Grounds,Cultural and Related Services
Swale Borough Council,29UM,12/07/2017,1151396,1581.67,ADELANTE SOFTWARE LTD,4450760                  ,FINANCIAL SERVICES,Computer Equipment & Materials,Internal Trading Cost Centres
Swale Borough Council,29UM,12/07/2017,1152106,910.00,AJS LTD,2944618                  ,SERVICE DELIVERY,Private Contractors - CIS,Environmental and Regulatory Services
Swale Borough Council,29UM,12/07/2017,1152106,907.20,AJS LTD,2944618                  ,SERVICE DELIVERY,Private Contractors - CIS,Environmental and Regulatory Services
Swale Borough Council,29UM,12/07/2017,1152184,43.70,ALLPAY LTD,02933191                 ,REVENUE SERVICES,Bank Charges Pay Point,Central Services to the Public
Swale Borough Council,29UM,12/07/2017,1152184,2777.17,ALLPAY LTD,02933191                 ,REVENUE SERVICES,Bank Charges Pay Point,Central Services to the Public
Swale Borough Council,29UM,12/07/2017,1152184,2.30,ALLPAY LTD,02933191                 ,REVENUE SERVICES,Bank Charges Pay Point,Housing
Swale Borough Council,29UM,12/07/2017,1152184,53.50,ALLPAY LTD,02933191                 ,REVENUE SERVICES,Bank Charges Pay Point,Housing
Swale Borough Council,29UM,12/07/2017,1152184,37.84,ALLPAY LTD,02933191                 ,EXCHEQUER,Bank Charges Pay Point,Internal Trading Cost Centres
Swale Borough Council,29UM,12/07/2017,1152187,6006.00,ARC CREATIVE DESIGN LTD,6203311                  ,LEISURE & OPEN SPACES,Construction,Not used in this Structure
Swale Borough Council,29UM,12/07/2017,1152045,581.32,BLENWOOD LTD,4383277                  ,HOUSING SERVICES,Maintenance - Grounds Contract,Housing
Swale Borough Council,29UM,12/07/2017,1152058,99465.28,BLENWOOD LTD,4383277                  ,LEISURE & OPEN SPACES,Grounds Maint Suspense,Cultural and Related Services
Swale Borough Council,29UM,12/07/2017,1152204,39882.59,BMR CONSTRUCTION LTD,08434080                 ,COMMUNITY SAFETY,Capital Constuction - CIS Works,Not used in this Structure
Swale Borough Council,29UM,12/07/2017,1152118,254.21,BORDEN LANE VETERINARY SURGERY,05097345                 ,ENVIRONMENTAL RESPONSE TEAM,Fees - Treatment Of Dogs,Environmental and Regulatory Services
Swale Borough Council,29UM,12/07/2017,1148135,-331.50,C.E.F. (SOUTH EAST DIVISION),                         ,PROPERTY SERVICES,Buildings Maintenance,Corporate & Democratic Core
Swale Borough Council,29UM,12/07/2017,1148740,282.02,C.E.F. (SOUTH EAST DIVISION),                         ,PROPERTY SERVICES,Non-Planned Building Maintenance,Corporate & Democratic Core
Swale Borough Council,29UM,12/07/2017,1151991,2000.00,CIPFA BUSINESS LTD,2376684                  ,FINANCIAL SERVICES,Grants & Subscriptions,Internal Trading Cost Centres
Swale Borough Council,29UM,12/07/2017,1152155,500.00,CIPFA BUSINESS LTD,2376684                  ,FINANCIAL SERVICES,Computer Equipment & Materials,Internal Trading Cost Centres
Swale Borough Council,29UM,12/07/2017,1152156,1000.00,CIPFA BUSINESS LTD,2376684                  ,FINANCIAL SERVICES,Computer Equipment & Materials,Internal Trading Cost Centres
Swale Borough Council,29UM,12/07/2017,1152157,3000.00,CIPFA BUSINESS LTD,2376684                  ,FINANCIAL SERVICES,Computer Equipment & Materials,Internal Trading Cost Centres
Swale Borough Council,29UM,12/07/2017,1152107,666.66,CLARKES SPORTS STUDIO,                         ,LEISURE & OPEN SPACES,Grants & Subscriptions,Cultural and Related Services
Swale Borough Council,29UM,12/07/2017,1151698,2632.15,COMENSURA LTD,04085767                 ,HUMAN RESOURCES,Agency/Contract Staff,Internal Trading Cost Centres
Swale Borough Council,29UM,12/07/2017,1152108,6741.61,COMENSURA LTD,04085767                 ,HUMAN RESOURCES,Agency/Contract Staff,Internal Trading Cost Centres
Swale Borough Council,29UM,12/07/2017,1152117,5174.13,COMMERCIAL SERVICES KENT LTD,5858177                  ,DEMOCRATIC & ELECTORAL SERVICES,Repair And Maintenance,Corporate & Democratic Core
Swale Borough Council,29UM,12/07/2017,1151801,22.50,DCB (KENT) LIMITED,03532339                 ,COMMUNITY SAFETY,Non-Planned Building Maintenance,Cultural and Related Services
Swale Borough Council,29UM,12/07/2017,1151801,190.40,DCB (KENT) LIMITED,03532339                 ,PROPERTY SERVICES,Buildings Maintenance,Trading Undertaking
Swale Borough Council,29UM,12/07/2017,1151801,79.73,DCB (KENT) LIMITED,03532339                 ,PROPERTY SERVICES,Non-Planned Building Maintenance,Trading Undertaking
Swale Borough Council,29UM,12/07/2017,1151801,1765.89,DCB (KENT) LIMITED,03532339                 ,HOUSING SERVICES,Buildings Maintenance,Housing
Swale Borough Council,29UM,12/07/2017,1151801,66.30,DCB (KENT) LIMITED,03532339                 ,HOUSING SERVICES,General Maintenance,Housing
Swale Borough Council,29UM,12/07/2017,1151801,1978.90,DCB (KENT) LIMITED,03532339                 ,PROPERTY SERVICES,Non-Planned Building Maintenance,Corporate & Democratic Core
Swale Borough Council,29UM,12/07/2017,1151801,1902.87,DCB (KENT) LIMITED,03532339                 ,PROPERTY SERVICES,Non-Planned Building Maintenance,Corporate & Democratic Core
Swale Borough Council,29UM,12/07/2017,1151801,22.50,DCB (KENT) LIMITED,03532339                 ,PROPERTY SERVICES,Non-Planned Building Maintenance,Corporate & Democratic Core
Swale Borough Council,29UM,12/07/2017,1151801,22.50,DCB (KENT) LIMITED,03532339                 ,PROPERTY SERVICES,Non-Planned Building Maintenance,Corporate & Democratic Core
Swale Borough Council,29UM,12/07/2017,1151801,66.50,DCB (KENT) LIMITED,03532339                 ,PROPERTY SERVICES,Non-Planned Building Maintenance,Corporate & Democratic Core
Swale Borough Council,29UM,12/07/2017,1151801,22.50,DCB (KENT) LIMITED,03532339                 ,PROPERTY SERVICES,Non-Planned Building Maintenance,Corporate & Democratic Core
Swale Borough Council,29UM,12/07/2017,1151801,22.50,DCB (KENT) LIMITED,03532339                 ,PROPERTY SERVICES,Non-Planned Building Maintenance,Corporate & Democratic Core
Swale Borough Council,29UM,12/07/2017,1151801,48.21,DCB (KENT) LIMITED,03532339                 ,PROPERTY SERVICES,Non-Planned Building Maintenance,Corporate & Democratic Core
Swale Borough Council,29UM,12/07/2017,1151801,64.50,DCB (KENT) LIMITED,03532339                 ,PROPERTY SERVICES,Non-Planned Building Maintenance,Corporate & Democratic Core
Swale Borough Council,29UM,12/07/2017,1151801,33.75,DCB (KENT) LIMITED,03532339                 ,LEISURE & OPEN SPACES,Non-Planned Building Maintenance,Cultural and Related Services
Swale Borough Council,29UM,12/07/2017,1151801,91.22,DCB (KENT) LIMITED,03532339                 ,CONTRACT & PROCUREMENT,Non-Planned Building Maintenance,Environmental and Regulatory Services
Swale Borough Council,29UM,12/07/2017,1151801,160.48,DCB (KENT) LIMITED,03532339                 ,CONTRACT & PROCUREMENT,Non-Planned Building Maintenance,Environmental and Regulatory Services
Swale Borough Council,29UM,12/07/2017,1151801,22.50,DCB (KENT) LIMITED,03532339                 ,CONTRACT & PROCUREMENT,Non-Planned Building Maintenance,Environmental and Regulatory Services
Swale Borough Council,29UM,12/07/2017,1151801,22.50,DCB (KENT) LIMITED,03532339                 ,CONTRACT & PROCUREMENT,Non-Planned Building Maintenance,Environmental and Regulatory Services
Swale Borough Council,29UM,12/07/2017,1151801,22.50,DCB (KENT) LIMITED,03532339                 ,LEISURE & OPEN SPACES,Non-Planned Building Maintenance,Cultural and Related Services
Swale Borough Council,29UM,12/07/2017,1151802,64.50,DCB (KENT) LIMITED,03532339                 ,LEISURE & OPEN SPACES,Maintenance - Grounds,Environmental and Regulatory Services
Swale Borough Council,29UM,12/07/2017,1151802,15069.16,DCB (KENT) LIMITED,03532339                 ,COMMUNITY SAFETY,Buildings Maintenance,Cultural and Related Services
Swale Borough Council,29UM,12/07/2017,1151802,94.00,DCB (KENT) LIMITED,03532339                 ,PROPERTY SERVICES,Non-Planned Building Maintenance,Cultural and Related Services
Swale Borough Council,29UM,12/07/2017,1151802,96.00,DCB (KENT) LIMITED,03532339                 ,PROPERTY SERVICES,Non-Planned Building Maintenance,Cultural and Related Services
Swale Borough Council,29UM,12/07/2017,1151802,233.85,DCB (KENT) LIMITED,03532339                 ,HOUSING SERVICES,General Maintenance,Housing
Swale Borough Council,29UM,12/07/2017,1151802,28.22,DCB (KENT) LIMITED,03532339                 ,HOUSING SERVICES,General Maintenance,Housing
Swale Borough Council,29UM,12/07/2017,1151802,184.70,DCB (KENT) LIMITED,03532339                 ,PROPERTY SERVICES,Non-Planned Building Maintenance,Corporate & Democratic Core
Swale Borough Council,29UM,12/07/2017,1151802,110.58,DCB (KENT) LIMITED,03532339                 ,PROPERTY SERVICES,Non-Planned Building Maintenance,Corporate & Democratic Core
Swale Borough Council,29UM,12/07/2017,1151802,194.76,DCB (KENT) LIMITED,03532339                 ,PROPERTY SERVICES,Non-Planned Building Maintenance,Corporate & Democratic Core
Swale Borough Council,29UM,12/07/2017,1151802,106.53,DCB (KENT) LIMITED,03532339                 ,PROPERTY SERVICES,Non-Planned Building Maintenance,Corporate & Democratic Core
Swale Borough Council,29UM,12/07/2017,1151802,32.25,DCB (KENT) LIMITED,03532339                 ,PROPERTY SERVICES,Non-Planned Building Maintenance,Corporate & Democratic Core
Swale Borough Council,29UM,12/07/2017,1151802,952.00,DCB (KENT) LIMITED,03532339                 ,PROPERTY SERVICES,Buildings Maintenance,Corporate & Democratic Core
Swale Borough Council,29UM,12/07/2017,1151802,453.57,DCB (KENT) LIMITED,03532339                 ,PROPERTY SERVICES,Non-Planned Building Maintenance,Corporate & Democratic Core
Swale Borough Council,29UM,12/07/2017,1151802,2363.20,DCB (KENT) LIMITED,03532339                 ,PROPERTY SERVICES,Buildings Maintenance,Corporate & Democratic Core
Swale Borough Council,29UM,12/07/2017,1151802,2209.76,DCB (KENT) LIMITED,03532339                 ,PROPERTY SERVICES,Buildings Maintenance,Corporate & Democratic Core
Swale Borough Council,29UM,12/07/2017,1151802,80.21,DCB (KENT) LIMITED,03532339                 ,PROPERTY SERVICES,Non-Planned Building Maintenance,Corporate & Democratic Core
Swale Borough Council,29UM,12/07/2017,1151802,66.48,DCB (KENT) LIMITED,03532339                 ,CONTRACT & PROCUREMENT,Non-Planned Building Maintenance,Environmental and Regulatory Services
Swale Borough Council,29UM,12/07/2017,1151802,97.48,DCB (KENT) LIMITED,03532339                 ,CONTRACT & PROCUREMENT,Non-Planned Building Maintenance,Environmental and Regulatory Services
Swale Borough Council,29UM,12/07/2017,1151802,257.60,DCB (KENT) LIMITED,03532339                 ,LEISURE & OPEN SPACES,Non-Planned Building Maintenance,Cultural and Related Services
Swale Borough Council,29UM,12/07/2017,1152288,1375.00,DIRECTFIELD LTD,                         ,HOUSING SERVICES,Homelessness  Prevention Services,Housing
Swale Borough Council,29UM,12/07/2017,1151876,306.00,KENT MESSENGER LTD,505554                   ,LICENCING,Fees And Services,Internal Trading Cost Centres
Swale Borough Council,29UM,12/07/2017,1152109,230.00,M A WOOD,                         ,DEMOCRATIC & ELECTORAL SERVICES,Fees And Services,Ledger/Suspense Codes
Swale Borough Council,29UM,12/07/2017,1152109,70.00,M A WOOD,                         ,DEMOCRATIC & ELECTORAL SERVICES,Fees And Services,Ledger/Suspense Codes
Swale Borough Council,29UM,12/07/2017,1152109,70.00,M A WOOD,                         ,DEMOCRATIC & ELECTORAL SERVICES,Fees And Services,Ledger/Suspense Codes
Swale Borough Council,29UM,12/07/2017,1152109,230.00,M A WOOD,                         ,DEMOCRATIC & ELECTORAL SERVICES,Fees And Services,Ledger/Suspense Codes
Swale Borough Council,29UM,12/07/2017,1152167,55491.75,MEDWAY COUNCIL,                         ,COMMUNITY SAFETY,CCTV Monitoring Service,Environmental and Regulatory Services
Swale Borough Council,29UM,12/07/2017,1152023,4200.00,MELENGA BUSINESS SOLUTIONS LTD,06148446                 ,FINANCIAL SERVICES,Agency/Contract Staff,Internal Trading Cost Centres
Swale Borough Council,29UM,12/07/2017,1152164,375.00,REDACTED PERSONAL INFORMATION,                         ,ENVIRONMENTAL RESPONSE TEAM,Legal Fees,Internal Trading Cost Centres
Swale Borough Council,29UM,12/07/2017,1152164,75.00,REDACTED PERSONAL INFORMATION,                         ,ENVIRONMENTAL RESPONSE TEAM,Legal Fees,Internal Trading Cost Centres
Swale Borough Council,29UM,12/07/2017,1152163,375.00,REDACTED PERSONAL INFORMATION,                         ,ENVIRONMENTAL RESPONSE TEAM,Legal Fees,Internal Trading Cost Centres
Swale Borough Council,29UM,12/07/2017,1152163,75.00,REDACTED PERSONAL INFORMATION,                         ,ENVIRONMENTAL RESPONSE TEAM,Legal Fees,Internal Trading Cost Centres
Swale Borough Council,29UM,12/07/2017,1152206,150.00,MR J W GATES,                         ,SERVICE DELIVERY,Maintenance - Grounds,Cultural and Related Services
Swale Borough Council,29UM,12/07/2017,1152206,100.00,MR J W GATES,                         ,SERVICE DELIVERY,Maintenance - Grounds,Cultural and Related Services
Swale Borough Council,29UM,12/07/2017,1152206,50.00,MR J W GATES,                         ,SERVICE DELIVERY,Maintenance - Grounds,Cultural and Related Services
Swale Borough Council,29UM,12/07/2017,1152207,175.00,MR J W GATES,                         ,SERVICE DELIVERY,Maintenance - Grounds,Cultural and Related Services
Swale Borough Council,29UM,12/07/2017,1152207,425.00,MR J W GATES,                         ,SERVICE DELIVERY,Maintenance - Grounds,Cultural and Related Services
Swale Borough Council,29UM,12/07/2017,1151645,2416.30,NEOPOST LIMITED,                         ,PROPERTY SERVICES,Equipment Maintenance,Internal Trading Cost Centres
Swale Borough Council,29UM,12/07/2017,1152142,1118.19,O2 (UK) LTD,1743099                  ,MKS ICT,Telephone,Corporate & Democratic Core
Swale Borough Council,29UM,12/07/2017,1152224,2887.50,P BINNIE CONSULTANCY LTD,07794784                 ,ECONOMIC DEVELOPMENT,Consultancy/Specialist Advice,Planning and Development Services
Swale Borough Council,29UM,12/07/2017,1152008,31169.00,PARAMOUNT INDEPENDENT PROPERTY SERVICES,                         ,HOUSING SERVICES,B & B - Landlords Payments,Housing
Swale Borough Council,29UM,12/07/2017,1152179,1018.23,ROYAL MAIL GROUP LTD,4138203                  ,PROPERTY SERVICES,Postage,Holding Codes
Swale Borough Council,29UM,12/07/2017,1151993,18860.00,SARUM HARDWOOD STRUCTURES LTD,1798531                  ,LEISURE & OPEN SPACES,Construction,Not used in this Structure
Swale Borough Council,29UM,12/07/2017,1152175,70000.00,SHEERNESS DOCKYARD PRESERVATION TRUST,                         ,FINANCIAL SERVICES,Regeneration Fund Expenditure,Ledger/Suspense Codes
Swale Borough Council,29UM,12/07/2017,1152122,37.31,SODEXO MOTIVATION SOLUTIONS UK LTD,2680629                  ,HUMAN RESOURCES,Fees And Services,Corporate & Democratic Core
Swale Borough Council,29UM,12/07/2017,1152177,3280.36,SOUTHERN COMMUNICATIONS LTD,1328040                  ,MKS ICT,Telephone,Corporate & Democratic Core
Swale Borough Council,29UM,12/07/2017,1151985,337.00,THOMSON REUTERS,1679046                  ,MKS LEGAL SERVICES,"Books, Journals & e - resources",Internal Trading Cost Centres
Swale Borough Council,29UM,12/07/2017,1152094,420.00,TIME ASSURED LIMITED,7483197                  ,PROPERTY SERVICES,Non-Planned Building Maintenance,Cultural and Related Services
Swale Borough Council,29UM,12/07/2017,1152191,2719.03,UK PAPER LEISURE CLUB,                         ,CHIEF EXECUTIVE,Catering Provisions,Public Health
Swale Borough Council,29UM,12/07/2017,1152154,411.00,VANITORIALS LIMITED,3952938                  ,PROPERTY SERVICES,Cleaning Materials,Internal Trading Cost Centres
Swale Borough Council,29UM,12/07/2017,1152159,967.50,VENN GROUP LIMITED,                         ,MKS LEGAL SERVICES,Agency/Contract Staff,Internal Trading Cost Centres
Swale Borough Council,29UM,12/07/2017,1151867,900.00,W D MILNE LTD,                         ,FINANCIAL SERVICES,Fees And Services,Internal Trading Cost Centres
Swale Borough Council,29UM,12/07/2017,1152173,531.26,WHISTL UK LIMITED,04417047                 ,REVENUE SERVICES,Postage,Central Services to the Public
Swale Borough Council,29UM,12/07/2017,1152173,4.69,WHISTL UK LIMITED,04417047                 ,PLANNING SERVICES,Postage,Planning and Development Services
Swale Borough Council,29UM,12/07/2017,1152173,265.63,WHISTL UK LIMITED,04417047                 ,REVENUE SERVICES,Postage,Housing
Swale Borough Council,29UM,12/07/2017,1152173,55.20,WHISTL UK LIMITED,04417047                 ,LEISURE & OPEN SPACES,Postage,Internal Trading Cost Centres
Swale Borough Council,29UM,12/07/2017,1152173,15.40,WHISTL UK LIMITED,04417047                 ,CAR PARKS,Postage,Internal Trading Cost Centres
Swale Borough Council,29UM,12/07/2017,1152173,108.07,WHISTL UK LIMITED,04417047                 ,PROPERTY SERVICES,Postage,Holding Codes
Swale Borough Council,29UM,12/07/2017,1152173,44.71,WHISTL UK LIMITED,04417047                 ,DEMOCRATIC & ELECTORAL SERVICES,Postage,Central Services to the Public
Swale Borough Council,29UM,19/07/2017,1152203,7500.00,A.C MACKLIN FENCING,10311550                 ,LEISURE & OPEN SPACES,Capital Constuction - CIS Works,Not used in this Structure
Swale Borough Council,29UM,19/07/2017,1152203,4811.70,A.C MACKLIN FENCING,10311550                 ,LEISURE & OPEN SPACES,Capital Constuction - CIS Works,Not used in this Structure
Swale Borough Council,29UM,19/07/2017,1152408,761.81,ACORN MAINTENANCE SERVICES,3546898                  ,HOUSING SERVICES,Housing Renovation Grants,Not used in this Structure
Swale Borough Council,29UM,19/07/2017,1152409,5733.90,ACORN MAINTENANCE SERVICES,3546898                  ,HOUSING SERVICES,Housing Renovation Grants,Not used in this Structure
Swale Borough Council,29UM,19/07/2017,1152410,608.13,ACORN MAINTENANCE SERVICES,3546898                  ,HOUSING SERVICES,Housing Renovation Grants,Not used in this Structure
Swale Borough Council,29UM,19/07/2017,1152158,1.38,ALLSTAR BUSINESS SOLUTIONS LTD - (DT),1073098                  ,DEMOCRATIC & ELECTORAL SERVICES,Petrol/Derv & Oil,Corporate & Democratic Core
Swale Borough Council,29UM,19/07/2017,1152158,31.43,ALLSTAR BUSINESS SOLUTIONS LTD - (DT),1073098                  ,SERVICE DELIVERY,Petrol/Derv & Oil,Cultural and Related Services
Swale Borough Council,29UM,19/07/2017,1152158,227.20,ALLSTAR BUSINESS SOLUTIONS LTD - (DT),1073098                  ,ENVIRONMENTAL RESPONSE TEAM,Fuel For Contract Vehicles,Internal Trading Cost Centres
Swale Borough Council,29UM,19/07/2017,1152158,66.81,ALLSTAR BUSINESS SOLUTIONS LTD - (DT),1073098                  ,LEISURE & OPEN SPACES,Fuel For Contract Vehicles,Cultural and Related Services
Swale Borough Council,29UM,19/07/2017,1152158,53.04,ALLSTAR BUSINESS SOLUTIONS LTD - (DT),1073098                  ,ENVIRONMENTAL RESPONSE TEAM,Fuel For Contract Vehicles,Environmental and Regulatory Services
Swale Borough Council,29UM,19/07/2017,1152158,1.38,ALLSTAR BUSINESS SOLUTIONS LTD - (DT),1073098                  ,HOUSING SERVICES,Fuel For Contract Vehicles,Housing
Swale Borough Council,29UM,19/07/2017,1152304,34.44,ALLSTAR BUSINESS SOLUTIONS LTD - (DT),1073098                  ,DEMOCRATIC & ELECTORAL SERVICES,Petrol/Derv & Oil,Corporate & Democratic Core
Swale Borough Council,29UM,19/07/2017,1152304,84.36,ALLSTAR BUSINESS SOLUTIONS LTD - (DT),1073098                  ,SERVICE DELIVERY,Petrol/Derv & Oil,Cultural and Related Services
Swale Borough Council,29UM,19/07/2017,1152304,134.87,ALLSTAR BUSINESS SOLUTIONS LTD - (DT),1073098                  ,ENVIRONMENTAL RESPONSE TEAM,Fuel For Contract Vehicles,Internal Trading Cost Centres
Swale Borough Council,29UM,19/07/2017,1152304,58.13,ALLSTAR BUSINESS SOLUTIONS LTD - (DT),1073098                  ,LEISURE & OPEN SPACES,Fuel For Contract Vehicles,Cultural and Related Services
Swale Borough Council,29UM,19/07/2017,1151984,12881.69,APCOA PARKING (UK) LTD,2572947                  ,CAR PARKS,Private Contractors,Highway and Transport Services
Swale Borough Council,29UM,19/07/2017,1151984,19322.54,APCOA PARKING (UK) LTD,2572947                  ,CAR PARKS,Private Contractors,Highway and Transport Services
Swale Borough Council,29UM,19/07/2017,1152403,2290.00,ASCENDIT LIFTS LTD,3493530                  ,HOUSING SERVICES,Housing Renovation Grants,Not used in this Structure
Swale Borough Council,29UM,19/07/2017,1152405,2655.00,ASCENDIT LIFTS LTD,3493530                  ,HOUSING SERVICES,Housing Renovation Grants,Not used in this Structure
Swale Borough Council,29UM,19/07/2017,1152407,2595.00,ASCENDIT LIFTS LTD,3493530                  ,HOUSING SERVICES,Housing Renovation Grants,Not used in this Structure
Swale Borough Council,29UM,19/07/2017,1152266,256.00,ASSOC OF ELECTORAL ADMINISTRATORS,2406897                  ,DEMOCRATIC & ELECTORAL SERVICES,Conference,Central Services to the Public
Swale Borough Council,29UM,19/07/2017,1152270,3341.02,BLENWOOD LTD,4383277                  ,LEISURE & OPEN SPACES,Maintenance - Grounds,Cultural and Related Services
Swale Borough Council,29UM,19/07/2017,1152201,1960.00,BT DEVELOPMENTS,                         ,HOUSING SERVICES,B & B - Landlords Payments,Housing
Swale Borough Council,29UM,19/07/2017,1152257,1748.72,BT REDCARE,1800000                  ,COMMUNITY SAFETY,CCTV Line Rental,Environmental and Regulatory Services
Swale Borough Council,29UM,19/07/2017,1152229,600.00,CANTERBURY CITY COUNCIL,                         ,LEISURE & OPEN SPACES,Maintenance - Grounds,Cultural and Related Services
Swale Borough Council,29UM,19/07/2017,1152230,797.00,CANTERBURY CITY COUNCIL,                         ,LEISURE & OPEN SPACES,Buildings Maintenance,Environmental and Regulatory Services
Swale Borough Council,29UM,19/07/2017,1152231,1725.00,CANTERBURY CITY COUNCIL,                         ,LEISURE & OPEN SPACES,Capitalised Fees And Charges,Not used in this Structure
Swale Borough Council,29UM,19/07/2017,1152232,1697.00,CANTERBURY CITY COUNCIL,                         ,LEISURE & OPEN SPACES,Maintenance - Grounds,Cultural and Related Services
Swale Borough Council,29UM,19/07/2017,1152233,495.00,CANTERBURY CITY COUNCIL,                         ,LEISURE & OPEN SPACES,Buildings Maintenance,Cultural and Related Services
Swale Borough Council,29UM,19/07/2017,1152234,643.00,CANTERBURY CITY COUNCIL,                         ,LEISURE & OPEN SPACES,Non-Planned Building Maintenance,Cultural and Related Services
Swale Borough Council,29UM,19/07/2017,1152235,1760.00,CANTERBURY CITY COUNCIL,                         ,LEISURE & OPEN SPACES,Maintenance - Grounds,Cultural and Related Services
Swale Borough Council,29UM,19/07/2017,1152256,1369.00,CARRINGTON WEST LIMITED,07344853                 ,PLANNING SERVICES,Agency/Contract Staff,Planning and Development Services
Swale Borough Council,29UM,19/07/2017,1152198,2228.33,CHILDREN AND FAMILIES LTD,                         ,COMMUNITY SAFETY,Fees And Services,Planning and Development Services
Swale Borough Council,29UM,19/07/2017,1152236,2784.00,CITY OF LONDON,                         ,MKS ENVIRONMENTAL SERVICES,Sampling / Monitoring,Environmental and Regulatory Services
Swale Borough Council,29UM,19/07/2017,1152237,365.00,CLEAR CHANNEL UK LTD,                         ,COMMUNICATIONS,Advertising & Promotion,Internal Trading Cost Centres
Swale Borough Council,29UM,19/07/2017,1152402,4797.50,COLDWELL CONSTRUCTION LTD,4814340                  ,HOUSING SERVICES,Housing Renovation Grants,Not used in this Structure
Swale Borough Council,29UM,19/07/2017,1152255,3128.78,COMENSURA LTD,04085767                 ,HUMAN RESOURCES,Agency/Contract Staff,Internal Trading Cost Centres
Swale Borough Council,29UM,19/07/2017,1152414,6498.66,DAYTRAD LIMITED,7654373                  ,HOUSING SERVICES,Housing Renovation Grants,Not used in this Structure
Swale Borough Council,29UM,19/07/2017,1152411,560.00,DOLPHIN STAIRLIFTS (KENT),04181846                 ,HOUSING SERVICES,Housing Renovation Grants,Not used in this Structure
Swale Borough Council,29UM,19/07/2017,1152412,1500.00,DOLPHIN STAIRLIFTS (KENT),04181846                 ,HOUSING SERVICES,Housing Renovation Grants,Not used in this Structure
Swale Borough Council,29UM,19/07/2017,1152322,495.84,GB SPORT & LEISURE UK LIMITED,7524601                  ,LEISURE & OPEN SPACES,Equipment Purchase,Cultural and Related Services
Swale Borough Council,29UM,19/07/2017,1152346,525.00,GODDARD CONSULTING,                         ,COMMUNITY SAFETY,Capitalised Fees And Charges,Not used in this Structure
Swale Borough Council,29UM,19/07/2017,1152226,16338.40,HERITAGE STONE RESTORATION CO. LIMITED,1877637                  ,LEISURE & OPEN SPACES,Buildings Maintenance,Environmental and Regulatory Services
Swale Borough Council,29UM,19/07/2017,1152394,1000.00,HISTORICAL RESEARCH GRP OF S'BOURNE,                         ,TOURISM & SPORTS DEVELOPMENT,Grants & Subscriptions,Cultural and Related Services
Swale Borough Council,29UM,19/07/2017,1152253,3500.00,HMCTS,                         ,CAR PARKS,Parking Adjudication Fees,Highway and Transport Services
Swale Borough Council,29UM,19/07/2017,1152253,3500.00,HMCTS,                         ,CAR PARKS,Parking Adjudication Fees,Highway and Transport Services
Swale Borough Council,29UM,19/07/2017,1152450,3615.00,HMCTS,                         ,REVENUE SERVICES,Court Costs,Central Services to the Public
Swale Borough Council,29UM,19/07/2017,1152385,561.25,HOLIDAY INN SITTINGBOURNE,                         ,ECONOMIC DEVELOPMENT,Fees And Services,Planning and Development Services
Swale Borough Council,29UM,19/07/2017,1152415,3755.00,HUBBARD & HOUGHTON CONSTRUCTION LTD,                         ,HOUSING SERVICES,Housing Renovation Grants,Not used in this Structure
Swale Borough Council,29UM,19/07/2017,1152254,526.50,KENT COUNTY COUNCIL (KCS),                         ,PROPERTY SERVICES,Gas,Corporate & Democratic Core
Swale Borough Council,29UM,19/07/2017,1152318,3708.12,KENT COUNTY COUNCIL (KCS),                         ,PROPERTY SERVICES,Electricity,Corporate & Democratic Core
Swale Borough Council,29UM,19/07/2017,1152181,18839.31,MAIDSTONE BOROUGH COUNCIL,                         ,MKS ICT,Computer Equipment & Materials,Internal Trading Cost Centres
Swale Borough Council,29UM,19/07/2017,1152449,978568.00,MAIDSTONE BOROUGH COUNCIL - DT,                         ,FINANCIAL SERVICES,Tariff to Gvt,Taxation and Non-Specific Grant Income
Swale Borough Council,29UM,19/07/2017,1152303,1809.86,MEDWAY PUBLIC SERVICES LTD,10041989                 ,COMMUNITY SAFETY,CCTV Monitoring Service,Environmental and Regulatory Services
Swale Borough Council,29UM,19/07/2017,1152026,655.00,METRIC GROUP LTD,2560839                  ,CAR PARKS,Fees - Licence,Highway and Transport Services
Swale Borough Council,29UM,19/07/2017,1152305,900.00,REDACTED PERSONAL INFORMATION,                         ,HOUSING SERVICES,RDS - Landlord claim on Bond Scheme,Housing
Swale Borough Council,29UM,19/07/2017,1152376,495.00,REDACTED PERSONAL INFORMATION,                         ,HOUSING SERVICES,RDS - Landlord claim on Bond Scheme,Housing
Swale Borough Council,29UM,19/07/2017,1152373,1800.00,REDACTED PERSONAL INFORMATION,                         ,PLANNING SERVICES,Legal Fees,Internal Trading Cost Centres
Swale Borough Council,29UM,19/07/2017,1152277,283.40,NEWSPLUS,                         ,COMMUNICATIONS,Newspapers & Periodicals,Corporate & Democratic Core
Swale Borough Council,29UM,19/07/2017,1152331,269.28,NPOWER,                         ,CAR PARKS,Electricity,Highway and Transport Services
Swale Borough Council,29UM,19/07/2017,1152332,250.93,NPOWER,                         ,LEISURE & OPEN SPACES,Electricity,Cultural and Related Services
Swale Borough Council,29UM,19/07/2017,1152393,12261.30,ORCHARD LANDSCAPES LTD,07095094                 ,COMMUNITY SAFETY,Capital Constuction - CIS Works,Not used in this Structure
Swale Borough Council,29UM,19/07/2017,1152393,3152.83,ORCHARD LANDSCAPES LTD,07095094                 ,COMMUNITY SAFETY,Capital Constuction - CIS Works,Not used in this Structure
Swale Borough Council,29UM,19/07/2017,1152442,15697.00,PEAC HOLDINGS (UK) LTD (DT),3088213                  ,LEISURE & OPEN SPACES,Contracts,Cultural and Related Services
Swale Borough Council,29UM,19/07/2017,1152451,16.67,RBS PURCHASING CARD (DT) - FLOWERS BY BEATRICE LTD,,DEMOCRATIC & ELECTORAL SERVICES,Floral Tributes,Corporate & Democratic Core
Swale Borough Council,29UM,19/07/2017,1152452,91.76,RBS PURCHASING CARD (DT) - SAINSBURYS,,TOURISM & SPORTS DEVELOPMENT,Catering Provisions,Cultural and Related Services
Swale Borough Council,29UM,19/07/2017,1152453,79.75,RBS PURCHASING CARD (DT) - TRADE FRAMES,,PROPERTY SERVICES,Equipment Purchase,Corporate & Democratic Core
Swale Borough Council,29UM,19/07/2017,1152454,64.12,RBS PURCHASING CARD (DT) - ENTERPRISE RENT A CAR,,CORPORATE SERVICES,Fees And Services,Corporate & Democratic Core
Swale Borough Council,29UM,19/07/2017,1152454,20.75,RBS PURCHASING CARD (DT) - SAINSBURYS,,CORPORATE SERVICES,Catering Provisions,Corporate & Democratic Core
Swale Borough Council,29UM,19/07/2017,1152455,114.49,RBS PURCHASING CARD (DT) - SPORTS DIRECT,                         ,COMMUNITY SAFETY,Fees And Services,Planning and Development Services
Swale Borough Council,29UM,19/07/2017,1152455,360.00,RBS PURCHASING CARD (DT) - RSS SERVICES LTD,                         ,COMMUNITY SAFETY,Fees And Services,Environmental and Regulatory Services
Swale Borough Council,29UM,19/07/2017,1152455,53.55,RBS PURCHASING CARD (DT) - TRAINLINE,                         ,POLICY,Travel Warrants (Staff Travel),Corporate & Democratic Core
Swale Borough Council,29UM,19/07/2017,1152455,31.30,RBS PURCHASING CARD (DT) - SAINSBURYS,                         ,DIRECTOR OF REGENERATION,Catering Provisions,Internal Trading Cost Centres
Swale Borough Council,29UM,19/07/2017,1152456,11.70,RBS PURCHASING CARD (DT) - SITTINGBOURNE SHOES,,HOUSING SERVICES,General Maintenance,Housing
Swale Borough Council,29UM,19/07/2017,1152456,156.00,RBS PURCHASING CARD (DT) - ASDA ,,HOUSING SERVICES,General Maintenance,Housing
Swale Borough Council,29UM,19/07/2017,1152456,45.82,RBS PURCHASING CARD (DT) - WHIRLPOOL ,,HOUSING SERVICES,General Maintenance,Housing
Swale Borough Council,29UM,19/07/2017,1152457,53.00,RBS PURCHASING CARD (DT) - AMAZON,,CHIEF EXECUTIVE,"Books, Journals & e - resources",Internal Trading Cost Centres
Swale Borough Council,29UM,19/07/2017,1152457,9.00,RBS PURCHASING CARD (DT) - EV CHARGING ELEKTROMOTIVE,,PROPERTY SERVICES,Electric Running Costs,Environmental and Regulatory Services
Swale Borough Council,29UM,19/07/2017,1152457,28.97,RBS PURCHASING CARD (DT) - CARD FACTORY,,CHIEF EXECUTIVE,Stationery,Public Health
Swale Borough Council,29UM,19/07/2017,1152457,1.83,RBS PURCHASING CARD (DT) - AMAZON,,CHIEF EXECUTIVE,Stationery,Public Health
Swale Borough Council,29UM,19/07/2017,1152457,40.50,RBS PURCHASING CARD (DT) - CARD FACTORY,,CHIEF EXECUTIVE,Stationery,Public Health
Swale Borough Council,29UM,19/07/2017,1152457,43.90,RBS PURCHASING CARD (DT) - ASDA ,,CHIEF EXECUTIVE,Stationery,Public Health
Swale Borough Council,29UM,19/07/2017,1152458,30.10,RBS PURCHASING CARD (DT) - AMAZON,,REVENUE SERVICES,Stationery,Central Services to the Public
Swale Borough Council,29UM,19/07/2017,1152458,3.22,RBS PURCHASING CARD (DT) - AMAZON,,REVENUE SERVICES,Stationery,Central Services to the Public
Swale Borough Council,29UM,19/07/2017,1152458,39.03,RBS PURCHASING CARD (DT) - CHEAP.COM,,TOURISM & SPORTS DEVELOPMENT,Computer Equipment & Materials,Internal Trading Cost Centres
Swale Borough Council,29UM,19/07/2017,1152458,22.02,RBS PURCHASING CARD (DT) - AMAZON,,REVENUE SERVICES,Stationery,Central Services to the Public
Swale Borough Council,29UM,19/07/2017,1152459,351.00,RBS PURCHASING CARD (DT) - HMCTS,                         ,REVENUE SERVICES,Court Costs,Central Services to the Public
Swale Borough Council,29UM,19/07/2017,1152460,73.24,RBS PURCHASING CARD (DT) - ASDA ,,HOUSING SERVICES,Fuel For Contract Vehicles,Housing
Swale Borough Council,29UM,19/07/2017,1152471,6.10,RBS PURCHASING CARD (DT) - PAYBYPHONE PARKING,,MKS LEGAL SERVICES,Car Park Fees,Internal Trading Cost Centres
Swale Borough Council,29UM,19/07/2017,1152471,6.10,RBS PURCHASING CARD (DT) - PAYBYPHONE PARKING,,MKS LEGAL SERVICES,Car Park Fees,Internal Trading Cost Centres
Swale Borough Council,29UM,19/07/2017,1152471,6.10,RBS PURCHASING CARD (DT) - PAYBYPHONE PARKING,,MKS LEGAL SERVICES,Car Park Fees,Internal Trading Cost Centres
Swale Borough Council,29UM,19/07/2017,1152471,6.20,RBS PURCHASING CARD (DT) - PAYBYPHONE PARKING,,MKS LEGAL SERVICES,Car Park Fees,Internal Trading Cost Centres
Swale Borough Council,29UM,19/07/2017,1152471,6.78,RBS PURCHASING CARD (DT) - PAYBYPHONE PARKING,,MKS LEGAL SERVICES,Car Park Fees,Internal Trading Cost Centres
Swale Borough Council,29UM,19/07/2017,1152471,27.94,RBS PURCHASING CARD (DT) - BLOOMSBURY PUBLISHING,,MKS LEGAL SERVICES,"Books, Journals & e - resources",Internal Trading Cost Centres
Swale Borough Council,29UM,19/07/2017,1152471,6.78,RBS PURCHASING CARD (DT) - PAYBYPHONE PARKING,,MKS LEGAL SERVICES,Car Park Fees,Internal Trading Cost Centres
Swale Borough Council,29UM,19/07/2017,1152471,6.10,RBS PURCHASING CARD (DT) - PAYBYPHONE PARKING,,MKS LEGAL SERVICES,Car Park Fees,Internal Trading Cost Centres
Swale Borough Council,29UM,19/07/2017,1152471,6.10,RBS PURCHASING CARD (DT) - PAYBYPHONE PARKING,,MKS LEGAL SERVICES,Car Park Fees,Internal Trading Cost Centres
Swale Borough Council,29UM,19/07/2017,1152471,6.20,RBS PURCHASING CARD (DT) - PAYBYPHONE PARKING,,MKS LEGAL SERVICES,Car Park Fees,Internal Trading Cost Centres
Swale Borough Council,29UM,19/07/2017,1152471,6.20,RBS PURCHASING CARD (DT) - PAYBYPHONE PARKING,,MKS LEGAL SERVICES,Car Park Fees,Internal Trading Cost Centres
Swale Borough Council,29UM,19/07/2017,1152471,6.10,RBS PURCHASING CARD (DT) - PAYBYPHONE PARKING,,MKS LEGAL SERVICES,Car Park Fees,Internal Trading Cost Centres
Swale Borough Council,29UM,19/07/2017,1152471,6.10,RBS PURCHASING CARD (DT) - PAYBYPHONE PARKING,,MKS LEGAL SERVICES,Car Park Fees,Internal Trading Cost Centres
Swale Borough Council,29UM,19/07/2017,1152471,6.10,RBS PURCHASING CARD (DT) - PAYBYPHONE PARKING,,MKS LEGAL SERVICES,Car Park Fees,Internal Trading Cost Centres
Swale Borough Council,29UM,19/07/2017,1152474,269.35,RBS PURCHASING CARD (DT) - VIRGIN TRAINS,                         ,HOUSING SERVICES,Conference,Housing
Swale Borough Council,29UM,19/07/2017,1152475,93.30,RBS PURCHASING CARD (DT) - CEF,,LEISURE & OPEN SPACES,Non-Planned Building Maintenance,Cultural and Related Services
Swale Borough Council,29UM,19/07/2017,1152476,131.92,RBS PURCHASING CARD (DT) - HOMEBASE,,LEISURE & OPEN SPACES,Swale in Bloom,Cultural and Related Services
Swale Borough Council,29UM,19/07/2017,1152477,5.67,RBS PURCHASING CARD (DT) - HERMES,                         ,MKS LEGAL SERVICES,Courier Service,Internal Trading Cost Centres
Swale Borough Council,29UM,19/07/2017,1152477,5.70,RBS PURCHASING CARD (DT) - HERMES,                         ,MKS LEGAL SERVICES,Courier Service,Internal Trading Cost Centres
Swale Borough Council,29UM,19/07/2017,1152477,6.08,RBS PURCHASING CARD (DT) - HERMES,                         ,MKS LEGAL SERVICES,Courier Service,Internal Trading Cost Centres
Swale Borough Council,29UM,19/07/2017,1152477,77.35,RBS PURCHASING CARD (DT) - CILEX LAW SCHOOL,,MKS LEGAL SERVICES,Training Course,Internal Trading Cost Centres
Swale Borough Council,29UM,19/07/2017,1152477,5.70,RBS PURCHASING CARD (DT) - HERMES,                         ,MKS LEGAL SERVICES,Courier Service,Internal Trading Cost Centres
Swale Borough Council,29UM,19/07/2017,1152477,239.99,RBS PURCHASING CARD (DT) - JCRLTD,                         ,MKS LEGAL SERVICES,"Books, Journals & e - resources",Internal Trading Cost Centres
Swale Borough Council,29UM,19/07/2017,1152314,627.93,ROYAL MAIL GROUP LTD,4138203                  ,DEMOCRATIC & ELECTORAL SERVICES,Postage,Ledger/Suspense Codes
Swale Borough Council,29UM,19/07/2017,1152418,756.00,REDACTED PERSONAL INFORMATION,                         ,HOUSING SERVICES,Housing Renovation Grants,Not used in this Structure
Swale Borough Council,29UM,19/07/2017,1152441,2968.00,SERCO PAISA LTD - (DT),04908482                 ,LEISURE & OPEN SPACES,Contracts,Cultural and Related Services
Swale Borough Council,29UM,19/07/2017,1152328,371.43,SEVENOAKS DISTRICT COUNCIL,                         ,REVENUE SERVICES,Fees And Services,Housing
Swale Borough Council,29UM,19/07/2017,1152355,350.00,SHARNWOOD DEVELOPMENTS LTD,                         ,HOUSING SERVICES,Homelessness  Prevention Services,Housing
Swale Borough Council,29UM,19/07/2017,1152375,270.00,SHARNWOOD DEVELOPMENTS LTD,                         ,HOUSING SERVICES,RDS - Landlord claim on Bond Scheme,Housing
Swale Borough Council,29UM,19/07/2017,1152325,700.00,SITTINGBOURNE HOLIDAY CLUB,                         ,ECONOMY & COMMUNITIES,Grants & Subscriptions,Central Services to the Public
Swale Borough Council,29UM,19/07/2017,1152413,1127.58,SOUTH EAST BUILDING CO LTD,1786838                  ,HOUSING SERVICES,Housing Renovation Grants,Not used in this Structure
Swale Borough Council,29UM,19/07/2017,1152251,398541.00,SPIRIT OF SITTINGBOURNE LLP,OC377168                 ,FINANCIAL SERVICES,Capitalised Fees And Charges,Not used in this Structure
Swale Borough Council,29UM,19/07/2017,1152090,750.00,SWAT ARCHAEOLOGY,                         ,LEISURE & OPEN SPACES,Maintenance - Grounds,Cultural and Related Services
Swale Borough Council,29UM,19/07/2017,1152299,560.00,VENN GROUP LIMITED,                         ,MKS LEGAL SERVICES,Agency/Contract Staff,Internal Trading Cost Centres
Swale Borough Council,29UM,19/07/2017,1152300,858.00,VENN GROUP LIMITED,                         ,MKS LEGAL SERVICES,Agency/Contract Staff,Internal Trading Cost Centres
Swale Borough Council,29UM,19/07/2017,1152301,858.00,VENN GROUP LIMITED,                         ,MKS LEGAL SERVICES,Agency/Contract Staff,Internal Trading Cost Centres
Swale Borough Council,29UM,19/07/2017,1152302,560.00,VENN GROUP LIMITED,                         ,MKS LEGAL SERVICES,Agency/Contract Staff,Internal Trading Cost Centres
Swale Borough Council,29UM,19/07/2017,1152160,1303.75,VIVID RESOURCING LIMITED,06459262                 ,PLANNING SERVICES,Agency/Contract Staff,Internal Trading Cost Centres
Swale Borough Council,29UM,19/07/2017,1152161,1102.50,VIVID RESOURCING LIMITED,06459262                 ,PLANNING SERVICES,Agency/Contract Staff,Internal Trading Cost Centres
Swale Borough Council,29UM,19/07/2017,1152162,2898.00,VIVID RESOURCING LIMITED,06459262                 ,PLANNING SERVICES,Agency/Contract Staff,Internal Trading Cost Centres
Swale Borough Council,29UM,19/07/2017,1152319,1047.14,VIVID RESOURCING LIMITED,06459262                 ,PLANNING SERVICES,Agency/Contract Staff,Internal Trading Cost Centres
Swale Borough Council,29UM,19/07/2017,1152320,1330.00,VIVID RESOURCING LIMITED,06459262                 ,PLANNING SERVICES,Agency/Contract Staff,Internal Trading Cost Centres
Swale Borough Council,29UM,19/07/2017,1152323,570.79,WHISTL UK LIMITED,04417047                 ,REVENUE SERVICES,Postage,Central Services to the Public
Swale Borough Council,29UM,19/07/2017,1152323,3.27,WHISTL UK LIMITED,04417047                 ,PLANNING SERVICES,Postage,Planning and Development Services
Swale Borough Council,29UM,19/07/2017,1152323,285.39,WHISTL UK LIMITED,04417047                 ,REVENUE SERVICES,Postage,Housing
Swale Borough Council,29UM,19/07/2017,1152323,88.47,WHISTL UK LIMITED,04417047                 ,LEISURE & OPEN SPACES,Postage,Internal Trading Cost Centres
Swale Borough Council,29UM,19/07/2017,1152323,18.09,WHISTL UK LIMITED,04417047                 ,CAR PARKS,Postage,Internal Trading Cost Centres
Swale Borough Council,29UM,19/07/2017,1152323,131.47,WHISTL UK LIMITED,04417047                 ,PROPERTY SERVICES,Postage,Holding Codes
Swale Borough Council,29UM,19/07/2017,1152323,203.29,WHISTL UK LIMITED,04417047                 ,DEMOCRATIC & ELECTORAL SERVICES,Postage,Central Services to the Public
Swale Borough Council,29UM,19/07/2017,1152371,640.00,WILLOW TREE HOME SOLUTIONS LTD,                         ,HOUSING SERVICES,Staying Put small repairs (contractors),Housing
Swale Borough Council,29UM,19/07/2017,1152416,330.00,WILLOW TREE HOME SOLUTIONS LTD,                         ,HOUSING SERVICES,Housing Renovation Grants,Not used in this Structure
Swale Borough Council,29UM,19/07/2017,1152417,1000.00,WILLOW TREE HOME SOLUTIONS LTD,                         ,HOUSING SERVICES,Housing Renovation Grants,Not used in this Structure
Swale Borough Council,29UM,19/07/2017,1151745,88871.19,WWM CIVILS LIMITED,08767604                 ,COMMUNITY SAFETY,Capital Constuction - CIS Works,Not used in this Structure
Swale Borough Council,29UM,19/07/2017,1152381,-88871.19,WWM CIVILS LIMITED,08767604                 ,COMMUNITY SAFETY,Capital Constuction - CIS Works,Not used in this Structure
Swale Borough Council,29UM,19/07/2017,1152382,70417.14,WWM CIVILS LIMITED,08767604                 ,COMMUNITY SAFETY,Capital Constuction - CIS Works,Not used in this Structure
Swale Borough Council,29UM,21/07/2017,1152560,735.00,REARDON PROPERTIES,                         ,HUMAN RESOURCES,Workflow Routing,
Swale Borough Council,29UM,21/07/2017,1152561,490.00,REARDON PROPERTIES,                         ,,Workflow Routing,
Swale Borough Council,29UM,21/07/2017,1152562,840.00,REARDON PROPERTIES,                         ,,Workflow Routing,
Swale Borough Council,29UM,21/07/2017,4500576,-735.00,REARDON PROPERTIES,                         ,HUMAN RESOURCES,Workflow Routing,
Swale Borough Council,29UM,21/07/2017,4500577,-490.00,REARDON PROPERTIES,                         ,,Workflow Routing,
Swale Borough Council,29UM,21/07/2017,4500578,-840.00,REARDON PROPERTIES,                         ,,Workflow Routing,
Swale Borough Council,29UM,26/07/2017,1152514,240.00,A.C MACKLIN FENCING,10311550                 ,LEISURE & OPEN SPACES,Maintenance - Grounds,Cultural and Related Services
Swale Borough Council,29UM,26/07/2017,1152514,180.00,A.C MACKLIN FENCING,10311550                 ,LEISURE & OPEN SPACES,Maintenance - Grounds,Cultural and Related Services
Swale Borough Council,29UM,26/07/2017,1152568,24750.00,ARC CREATIVE DESIGN LTD,6203311                  ,LEISURE & OPEN SPACES,Construction,Not used in this Structure
Swale Borough Council,29UM,26/07/2017,1152554,250.00,ASSOC OF ELECTORAL ADMINISTRATORS,2406897                  ,DEMOCRATIC & ELECTORAL SERVICES,Conference,Central Services to the Public
Swale Borough Council,29UM,26/07/2017,1152481,350.00,AYS LTD,                         ,CAR PARKS,Equipment Maintenance,Highway and Transport Services
Swale Borough Council,29UM,26/07/2017,1152469,1776.00,BATES JPW ADVERTISING LTD,784540                   ,PLANNING SERVICES,Recruitment Adverts - Staff,Internal Trading Cost Centres
Swale Borough Council,29UM,26/07/2017,1152470,1776.00,BATES JPW ADVERTISING LTD,784540                   ,PLANNING SERVICES,Recruitment Adverts - Staff,Planning and Development Services
Swale Borough Council,29UM,26/07/2017,1152472,1535.00,BATES JPW ADVERTISING LTD,784540                   ,PLANNING SERVICES,Recruitment Adverts - Staff,Planning and Development Services
Swale Borough Council,29UM,26/07/2017,1152502,890.56,BLENWOOD LTD,4383277                  ,LEISURE & OPEN SPACES,Construction,Not used in this Structure
Swale Borough Council,29UM,26/07/2017,1152503,2025.20,BLENWOOD LTD,4383277                  ,LEISURE & OPEN SPACES,Tree Maintenance,Cultural and Related Services
Swale Borough Council,29UM,26/07/2017,1152383,4124.00,CACI LIMITED,1649776                  ,COMMISSIONING & CUSTOMER CONTACT,Computer Equipment & Materials,Internal Trading Cost Centres
Swale Borough Council,29UM,26/07/2017,1152357,1369.00,CARRINGTON WEST LIMITED,07344853                 ,PLANNING SERVICES,Agency/Contract Staff,Planning and Development Services
Swale Borough Council,29UM,26/07/2017,1152495,4480.00,CHALKWELL COACH HIRE LTD,2520842                  ,TOURISM & SPORTS DEVELOPMENT,Fees And Services,Trading Undertaking
Swale Borough Council,29UM,26/07/2017,1152406,33357.50,CITIZENS ADVICE BUREAU IN SWALE,5052691                  ,TOURISM & SPORTS DEVELOPMENT,Voluntary Organisations Grants,Central Services to the Public
Swale Borough Council,29UM,26/07/2017,1152494,319.20,CITY OF LONDON,                         ,MKS ENVIRONMENTAL SERVICES,Sampling / Monitoring,Environmental and Regulatory Services
Swale Borough Council,29UM,26/07/2017,1152464,410.00,COAST PROMOTIONS LTD,5866813                  ,ECONOMIC DEVELOPMENT,Fees And Services,Planning and Development Services
Swale Borough Council,29UM,26/07/2017,1152620,7389.10,COLDWELL CONSTRUCTION LTD,4814340                  ,HOUSING SERVICES,Housing Renovation Grants,Not used in this Structure
Swale Borough Council,29UM,26/07/2017,1152404,11633.07,COMENSURA LTD,04085767                 ,HUMAN RESOURCES,Agency/Contract Staff,Internal Trading Cost Centres
Swale Borough Council,29UM,26/07/2017,1152214,341.05,CONTRACT SECURITY SERVICES,2461362                  ,EXCHEQUER,Cash Security,Internal Trading Cost Centres
Swale Borough Council,29UM,26/07/2017,1152214,4443.08,CONTRACT SECURITY SERVICES,2461362                  ,CAR PARKS,Cash Security,Highway and Transport Services
Swale Borough Council,29UM,26/07/2017,1152529,4860.83,CORE ASSETS CHILDREN'S SERVICES LTD,                         ,COMMUNITY SAFETY,Fees And Services,Planning and Development Services
Swale Borough Council,29UM,26/07/2017,1152530,4860.83,CORE ASSETS CHILDREN'S SERVICES LTD,                         ,COMMUNITY SAFETY,Fees And Services,Planning and Development Services
Swale Borough Council,29UM,26/07/2017,1152112,924.00,DISCLOSURE & BARRING SERVICE (DT),                         ,LICENCING,Fees And Services,Environmental and Regulatory Services
Swale Borough Council,29UM,26/07/2017,1152523,1970.00,FAMILY HOMES,                         ,HOUSING SERVICES,Homelessness  Prevention Services,Housing
Swale Borough Council,29UM,26/07/2017,1152311,1562.49,HI WAY SERVICES LTD,2850815                  ,CAR PARKS,Road Lining,Highway and Transport Services
Swale Borough Council,29UM,26/07/2017,1152616,6300.00,HUBBARD & HOUGHTON CONSTRUCTION LTD,                         ,HOUSING SERVICES,Housing Renovation Grants,Not used in this Structure
Swale Borough Council,29UM,26/07/2017,1152617,8807.00,HUBBARD & HOUGHTON CONSTRUCTION LTD,                         ,HOUSING SERVICES,Housing Renovation Grants,Not used in this Structure
Swale Borough Council,29UM,26/07/2017,1152618,5793.44,HUBBARD & HOUGHTON CONSTRUCTION LTD,                         ,HOUSING SERVICES,Housing Renovation Grants,Not used in this Structure
Swale Borough Council,29UM,26/07/2017,1152619,750.00,HUBBARD & HOUGHTON LTD,                         ,HOUSING SERVICES,Housing Renovation Grants,Not used in this Structure
Swale Borough Council,29UM,26/07/2017,1152399,599.03,HUSSON UK LTD,4340391                  ,LEISURE & OPEN SPACES,Equipment Purchase,Cultural and Related Services
Swale Borough Council,29UM,26/07/2017,1152202,5454.46,IMPERIAL CIVIL ENFORCEMENT SOLUTIONS,2023383                  ,CAR PARKS,Computer Equipment & Materials,Highway and Transport Services
Swale Borough Council,29UM,26/07/2017,1152202,5454.46,IMPERIAL CIVIL ENFORCEMENT SOLUTIONS,2023383                  ,CAR PARKS,Computer Equipment & Materials,Highway and Transport Services
Swale Borough Council,29UM,26/07/2017,1152623,10873.80,J & D SYSTEMS,                         ,HOUSING SERVICES,Housing Renovation Grants,Not used in this Structure
Swale Borough Council,29UM,26/07/2017,1152316,488.00,JACKSON LIFT SERVICES LTD,2186996                  ,PROPERTY SERVICES,Non-Planned Building Maintenance,Corporate & Democratic Core
Swale Borough Council,29UM,26/07/2017,1152178,536.40,KENT INVICTA CHAMBER OF COMMERCE,2794615                  ,ECONOMIC DEVELOPMENT,Fees And Services,Planning and Development Services
Swale Borough Council,29UM,26/07/2017,1152317,5967.75,KINGDOM SECURITY LIMITED,2795197                  ,ENVIRONMENTAL RESPONSE TEAM,Fees And Services,Planning and Development Services
Swale Borough Council,29UM,26/07/2017,1152542,500.00,LEMAR LIMITED,04350292                 ,SERVICE DELIVERY,Private Contractors - CIS,Highway and Transport Services
Swale Borough Council,29UM,26/07/2017,1152542,300.00,LEMAR LIMITED,04350292                 ,SERVICE DELIVERY,Private Contractors - CIS,Highway and Transport Services
Swale Borough Council,29UM,26/07/2017,1152543,300.00,LEMAR LIMITED,04350292                 ,SERVICE DELIVERY,Private Contractors - CIS,Highway and Transport Services
Swale Borough Council,29UM,26/07/2017,1152543,100.00,LEMAR LIMITED,04350292                 ,SERVICE DELIVERY,Private Contractors - CIS,Highway and Transport Services
Swale Borough Council,29UM,26/07/2017,1152546,300.00,LEMAR LIMITED,04350292                 ,SERVICE DELIVERY,Private Contractors - CIS,Highway and Transport Services
Swale Borough Council,29UM,26/07/2017,1152546,600.00,LEMAR LIMITED,04350292                 ,SERVICE DELIVERY,Private Contractors - CIS,Highway and Transport Services
Swale Borough Council,29UM,26/07/2017,1152067,11385.00,LESSHOMELESS LIMITED,08458851                 ,HOUSING SERVICES,B & B - Landlords Payments,Housing
Swale Borough Council,29UM,26/07/2017,1152243,-11385.00,LESSHOMELESS LIMITED,08458851                 ,HOUSING SERVICES,B & B - Landlords Payments,Housing
Swale Borough Council,29UM,26/07/2017,1152244,11105.00,LESSHOMELESS LIMITED,08458851                 ,HOUSING SERVICES,B & B - Landlords Payments,Housing
Swale Borough Council,29UM,26/07/2017,1152309,1000.00,LOCATA (HOUSING SERVICES) LTD,04419315                 ,HOUSING SERVICES,Computer Equipment & Materials,Housing
Swale Borough Council,29UM,26/07/2017,1152110,675.00,M A WOOD,                         ,CONTRACT & PROCUREMENT,"Clearance Of Waste,Fly Tipping",Environmental and Regulatory Services
Swale Borough Council,29UM,26/07/2017,1152111,990.00,M A WOOD,                         ,CONTRACT & PROCUREMENT,Equipment Maintenance,Environmental and Regulatory Services
Swale Borough Council,29UM,26/07/2017,1152312,2235.00,MAGEES GUESTHOUSE,                         ,HOUSING SERVICES,B & B - Landlords Payments,Housing
Swale Borough Council,29UM,26/07/2017,1152168,102295.00,MAIDSTONE BOROUGH COUNCIL,                         ,MKS ICT,MKS Charges for ICT,Internal Trading Cost Centres
Swale Borough Council,29UM,26/07/2017,1152169,40859.32,MAIDSTONE BOROUGH COUNCIL,                         ,AUDIT,MKS Charges for Audit Services,Internal Trading Cost Centres
Swale Borough Council,29UM,26/07/2017,1152170,16300.00,MAIDSTONE BOROUGH COUNCIL,                         ,MKS ICT,MKS Charges for ICT,Internal Trading Cost Centres
Swale Borough Council,29UM,26/07/2017,1152192,74084.71,MAIDSTONE BOROUGH COUNCIL,                         ,CONTRACT & PROCUREMENT,Private Contractors,Environmental and Regulatory Services
Swale Borough Council,29UM,26/07/2017,1152192,201672.20,MAIDSTONE BOROUGH COUNCIL,                         ,CONTRACT & PROCUREMENT,Private Contractors,Environmental and Regulatory Services
Swale Borough Council,29UM,26/07/2017,1152193,74084.71,MAIDSTONE BOROUGH COUNCIL,                         ,CONTRACT & PROCUREMENT,Private Contractors,Environmental and Regulatory Services
Swale Borough Council,29UM,26/07/2017,1152193,201672.20,MAIDSTONE BOROUGH COUNCIL,                         ,CONTRACT & PROCUREMENT,Private Contractors,Environmental and Regulatory Services
Swale Borough Council,29UM,26/07/2017,1152195,17434.56,MONITOR CLEANING SERVICES LTD,02526388                 ,CONTRACT & PROCUREMENT,Private Contractors,Environmental and Regulatory Services
Swale Borough Council,29UM,26/07/2017,1152419,700.00,REDACTED PERSONAL INFORMATION,                         ,ENVIRONMENTAL RESPONSE TEAM,Legal Fees,Internal Trading Cost Centres
Swale Borough Council,29UM,26/07/2017,1152419,140.00,REDACTED PERSONAL INFORMATION,                         ,ENVIRONMENTAL RESPONSE TEAM,Legal Fees,Internal Trading Cost Centres
Swale Borough Council,29UM,26/07/2017,1152535,625.00,MR J W GATES,                         ,LEISURE & OPEN SPACES,Grounds Contract Variations,Cultural and Related Services
Swale Borough Council,29UM,26/07/2017,1152528,734.00,REDACTED PERSONAL INFORMATION,                         ,HOUSING SERVICES,RDS - Landlord claim on Bond Scheme,Housing
Swale Borough Council,29UM,26/07/2017,1152527,990.00,REDACTED PERSONAL INFORMATION,                         ,HOUSING SERVICES,RDS - Rent in Advance (Supporting People),Housing
Swale Borough Council,29UM,26/07/2017,1152374,23800.00,REDACTED PERSONAL INFORMATION,                         ,PLANNING SERVICES,Legal Fees,Internal Trading Cost Centres
Swale Borough Council,29UM,26/07/2017,1152509,1500.00,REDACTED PERSONAL INFORMATION,                         ,PLANNING SERVICES,Legal Fees,Internal Trading Cost Centres
Swale Borough Council,29UM,26/07/2017,1152509,300.00,REDACTED PERSONAL INFORMATION,                         ,PLANNING SERVICES,Legal Fees,Internal Trading Cost Centres
Swale Borough Council,29UM,26/07/2017,1152238,735.00,REARDON PROPERTIES,                         ,HOUSING SERVICES,B & B - Landlords Payments,Housing
Swale Borough Council,29UM,26/07/2017,1152239,490.00,REARDON PROPERTIES,                         ,HOUSING SERVICES,B & B - Landlords Payments,Housing
Swale Borough Council,29UM,26/07/2017,1152240,560.00,REARDON PROPERTIES,                         ,HOUSING SERVICES,B & B - Landlords Payments,Housing
Swale Borough Council,29UM,26/07/2017,1152245,630.00,REARDON PROPERTIES,                         ,HOUSING SERVICES,B & B - Landlords Payments,Housing
Swale Borough Council,29UM,26/07/2017,1152246,490.00,REARDON PROPERTIES,                         ,HOUSING SERVICES,B & B - Landlords Payments,Housing
Swale Borough Council,29UM,26/07/2017,1152349,490.00,REARDON PROPERTIES,                         ,HOUSING SERVICES,B & B - Landlords Payments,Housing
Swale Borough Council,29UM,26/07/2017,1152350,490.00,REARDON PROPERTIES,                         ,HOUSING SERVICES,B & B - Landlords Payments,Housing
Swale Borough Council,29UM,26/07/2017,1152498,989.30,RSP RAIL TRAVEL ACCOUNT - (DT),                         ,FINANCIAL SERVICES,Travel Warrants (Staff Travel),Internal Trading Cost Centres
Swale Borough Council,29UM,26/07/2017,1152625,3476.00,SEC LTD,                         ,HOUSING SERVICES,Housing Renovation Grants,Not used in this Structure
Swale Borough Council,29UM,26/07/2017,1152087,300.00,SHEPPY GLASS CENTRE LTD,                         ,HOUSING SERVICES,Rechargeable Environ Works,Housing
Swale Borough Council,29UM,26/07/2017,1152621,10471.50,SOUTH EAST BUILDING CO LTD,1786838                  ,HOUSING SERVICES,Housing Renovation Grants,Not used in this Structure
Swale Borough Council,29UM,26/07/2017,1152622,8380.20,SOUTH EAST BUILDING CO LTD,1786838                  ,HOUSING SERVICES,Housing Renovation Grants,Not used in this Structure
Swale Borough Council,29UM,26/07/2017,1152384,1705.00,SOUTH EAST ENGLAND COUNCILS,                         ,DEMOCRATIC & ELECTORAL SERVICES,Grants & Subscriptions,Corporate & Democratic Core
Swale Borough Council,29UM,26/07/2017,1152520,500.00,SWALE EMPLOYEES ASSOCIATION,                         ,CHIEF EXECUTIVE,Catering Provisions,Corporate & Democratic Core
Swale Borough Council,29UM,26/07/2017,1152493,5639.40,TASK-IT,                         ,CONTRACT & PROCUREMENT,Fees And Services,Environmental and Regulatory Services
Swale Borough Council,29UM,26/07/2017,1152499,26917.80,TASK-IT,                         ,CONTRACT & PROCUREMENT,Fees And Services,Environmental and Regulatory Services
Swale Borough Council,29UM,26/07/2017,1152480,400.00,TEYNHAM COMMUNITY PRE-SCHOOL,                         ,ECONOMY & COMMUNITIES,Grants & Subscriptions,Central Services to the Public
Swale Borough Council,29UM,26/07/2017,1152190,5078.01,THE NATIONAL LEAFLET COMPANY,02569979                 ,COMMUNICATIONS,Postage,Corporate & Democratic Core
Swale Borough Council,29UM,26/07/2017,1152089,1675.00,TRAFALGAR TAVERN LTD,07999329                 ,HOUSING SERVICES,B & B - Landlords Payments,Housing
Swale Borough Council,29UM,26/07/2017,1152205,1685.00,TRAFALGAR TAVERN LTD,07999329                 ,HOUSING SERVICES,B & B - Landlords Payments,Housing
Swale Borough Council,29UM,26/07/2017,1152365,1715.00,TRAFALGAR TAVERN LTD,07999329                 ,HOUSING SERVICES,B & B - Landlords Payments,Housing
Swale Borough Council,29UM,26/07/2017,1152341,2319.00,TUNBRIDGE WELLS BOROUGH COUNCIL,                         ,MKS ENVIRONMENTAL SERVICES,MKS Charges for Environmental Services,Internal Trading Cost Centres
Swale Borough Council,29UM,26/07/2017,1152401,400.00,UPCHURCH VILLAGE HALL,                         ,ECONOMY & COMMUNITIES,Grants & Subscriptions,Central Services to the Public
Swale Borough Council,29UM,26/07/2017,1152485,967.50,VENN GROUP LIMITED,                         ,MKS LEGAL SERVICES,Agency/Contract Staff,Internal Trading Cost Centres
Swale Borough Council,29UM,26/07/2017,1152486,858.00,VENN GROUP LIMITED,                         ,MKS LEGAL SERVICES,Agency/Contract Staff,Internal Trading Cost Centres
Swale Borough Council,29UM,26/07/2017,1152487,320.00,VENN GROUP LIMITED,                         ,MKS LEGAL SERVICES,Agency/Contract Staff,Internal Trading Cost Centres
Swale Borough Council,29UM,26/07/2017,1152343,870.00,VP PROPERTY DEVELOPMENT LTD,                         ,HOUSING SERVICES,B & B - Landlords Payments,Housing
Swale Borough Council,29UM,26/07/2017,1152083,900.00,WATER SUPPLY SERVICES LTD,10019688                 ,LEISURE & OPEN SPACES,Maintenance - Grounds,Cultural and Related Services
Swale Borough Council,29UM,26/07/2017,1152482,1280.00,WEALD WOODSCAPES LTD,8028446                  ,LEISURE & OPEN SPACES,Maintenance - Grounds,Cultural and Related Services
Swale Borough Council,29UM,26/07/2017,1152078,9952.00,WHITE RESIDENTIAL,                         ,HOUSING SERVICES,B & B - Landlords Payments,Housing
Swale Borough Council,29UM,26/07/2017,1152650,2780.61,WORLDPAY (DT),07316500                 ,REVENUE SERVICES,Commission Paid,Central Services to the Public
Swale Borough Council,29UM,26/07/2017,1152650,251.35,WORLDPAY (DT),07316500                 ,REVENUE SERVICES,Commission Paid,Central Services to the Public
Swale Borough Council,29UM,26/07/2017,1152650,30.32,WORLDPAY (DT),07316500                 ,REVENUE SERVICES,Commission Paid,Housing
Swale Borough Council,29UM,26/07/2017,1152650,15.26,WORLDPAY (DT),07316500                 ,EXCHEQUER,Commission Paid,Internal Trading Cost Centres
Swale Borough Council,29UM,26/07/2017,1152650,938.97,WORLDPAY (DT),07316500                 ,EXCHEQUER,Commission Paid,Internal Trading Cost Centres
Swale Borough Council,29UM,26/07/2017,1152650,7.05,WORLDPAY (DT),07316500                 ,EXCHEQUER,Commission Paid,Internal Trading Cost Centres
Swale Borough Council,29UM,26/07/2017,1152650,9.99,WORLDPAY (DT),07316500                 ,MKS ICT,Fees And Services,Internal Trading Cost Centres
